fUSD/lending_fUSD_20240324
["ID","MTS","AMOUNT","RATE_DAILY","PERIOD"]
[320342767,1711313472554,-500.0,0.00019452,2]
[320342768,1711313472563,-1407.65,0.00019452,2]
[320342769,1711313472572,-500.0,0.00019452,2]
[320342770,1711313472581,-500.0,0.00019452,2]
[320342771,1711313472591,-1123.57,0.00019452,2]
[320342772,1711313472600,-500.0,0.00019452,2]
[320342773,1711313472609,-500.0,0.00019452,2]
[320342774,1711313472619,-500.0,0.00019452,2]
[320342775,1711313472628,-501.90364932,0.00019452,2]
[320342776,1711313472637,-500.0,0.00019452,2]
[320342777,1711313472647,-500.0,0.00019452,2]
[320342778,1711313472657,-500.0,0.00019452,2]
[320342779,1711313472666,-500.0,0.00019452,2]
[320342780,1711313472675,-500.0,0.00019452,2]
[320342781,1711313472686,-500.0,0.00019452,2]
[320342782,1711313472695,-945.606395,0.00019452,2]
[320342783,1711313472704,-1891.86,0.00019452,2]
[320342784,1711313472714,-1585.97,0.00019452,2]
[320342785,1711313472724,-500.0,0.00019452,2]
[320342786,1711313472733,-500.0,0.00019452,2]
[320342787,1711313472742,-945.606395,0.00019452,2]
[320342788,1711313472754,-500.0,0.00019452,2]
[320342789,1711313472764,-500.0,0.00019452,2]
[320342790,1711313472774,-500.0,0.00019452,2]
[320342791,1711313472784,-2086.53,0.00019452,2]
[320342792,1711313472793,-1035.86,0.00019452,2]
[320342793,1711313472803,-796.32,0.00019452,2]
[320342794,1711313472812,-500.0,0.00019452,2]
[320342795,1711313472821,-500.0,0.00019452,2]
[320342796,1711313472832,-748.26,0.00019452,2]
[320342797,1711313472841,-500.0,0.00019452,2]
[320342798,1711313472851,-500.0,0.00019452,2]
[320342799,1711313472861,-1259.95,0.00019452,2]
[320342800,1711313472870,-502.07250643,0.00019452,2]
[320342801,1711313472879,-500.0,0.00019452,2]
[320342802,1711313472888,-1190.777118,0.00019452,2]
[320342803,1711313472897,-151.0,0.00019452,2]
[320342804,1711313472906,-500.0,0.00019452,2]
[320342805,1711313472917,-500.0,0.00019452,2]
[320342806,1711313472926,-599.28,0.00019452,2]
[320342807,1711313472936,-1160.91,0.00019452,2]
[320342808,1711313472945,-500.0,0.00019452,2]
[320342809,1711313472954,-1190.777118,0.00019452,2]
[320342810,1711313472963,-500.0,0.00019452,2]
[320342811,1711313472972,-500.0,0.00019452,2]
[320342812,1711313472981,-500.0,0.00019452,2]
[320342813,1711313472991,-500.0,0.00019452,2]
[320342814,1711313473000,-373.00681517,0.00019452,2]
[320342815,1711313473011,-500.0,0.00019452,2]
[320342816,1711313473021,-500.0,0.00019452,2]
[320342817,1711313473030,-1392.76,0.00019452,2]
[320342818,1711313473039,-501.52339711,0.00019452,2]
[320342819,1711313473049,-500.0,0.00019452,2]
[320342820,1711313473058,-500.0,0.00019452,2]
[320342821,1711313473068,-546.15,0.00019452,2]
[320342822,1711313473077,-757.48,0.00019452,2]
[320342823,1711313473086,-500.0,0.00019452,2]
[320342824,1711313473095,-500.0,0.00019452,2]
[320342825,1711313473104,-500.0,0.00019452,2]
[320342826,1711313473114,-151.0,0.00019452,2]
[320342827,1711313473123,-500.0,0.00019452,2]
[320342828,1711313473132,-500.0,0.00019452,2]
[320342829,1711313473141,-500.24650507,0.00019452,2]
[320342830,1711313473150,-500.0,0.00019452,2]
[320342831,1711313473160,-379.57101556,0.00019452,2]
[320342832,1711313473169,-1354.46,0.00019452,2]
[320342833,1711313473179,-500.0,0.00019452,2]
[320342834,1711313473189,-500.0,0.00019452,2]
[320342835,1711313473198,-500.0,0.00019452,2]
[320342836,1711313473207,-1467.8,0.00019452,2]
[320342837,1711313473217,-500.0,0.00019452,2]
[320342838,1711313473226,-500.0,0.00019452,2]
[320342839,1711313473235,-151.0,0.00019452,2]
[320342840,1711313473245,-500.0,0.00019452,2]
[320342841,1711313473254,-500.0,0.00019452,2]
[320342842,1711313473263,-500.0,0.00019452,2]
[320342843,1711313473273,-1230.94,0.00019452,2]
[320342844,1711313473282,-500.0,0.00019452,2]
[320342845,1711313473291,-500.0,0.00019452,2]
[320342846,1711313473300,-500.0,0.00019452,2]
[320342847,1711313473309,-500.0,0.00019452,2]
[320342848,1711313473320,-500.0,0.00019452,2]
[320342849,1711313473329,-396.61581862,0.00019452,2]
[320342850,1711313473339,-500.0,0.00019452,2]
[320342851,1711313473352,-497.01322316,0.00019452,2]
[320342852,1711313473361,-310.63477398,0.00019452,2]
[320342853,1711313473376,-500.0,0.00019452,2]
[320342854,1711313473385,-501.54103907,0.00019452,2]
[320342855,1711313473395,-500.0,0.00019452,2]
[320342856,1711313473404,-500.0,0.00019452,2]
[320342857,1711313473423,-500.0,0.00019452,2]
[320342858,1711313473433,-500.0,0.00019452,2]
[320342859,1711313473444,-500.0,0.00019452,2]
[320342860,1711313473454,-1499.66,0.00019452,2]
[320342861,1711313473464,-845.92,0.00019452,2]
[320342862,1711313473476,-154.698253,0.00019452,2]
[320342863,1711313473486,-500.0,0.00019452,2]
[320342864,1711313473495,-500.0,0.00019452,2]
[320342865,1711313473504,-500.0,0.00019452,2]
[320342866,1711313473514,-500.0,0.00019452,2]
[320342867,1711313473523,-151.0,0.00019452,2]
[320342868,1711313473537,-500.0,0.00019452,2]
[320342869,1711313473547,-500.0,0.00019452,2]
[320342870,1711313473556,-500.0,0.00019452,2]
[320342871,1711313473565,-2316.17,0.00019452,2]
[320342872,1711313473575,-1402.17,0.00019452,2]
[320342873,1711313473584,-500.0,0.00019452,2]
[320342874,1711313473593,-500.0,0.00019452,2]
[320342875,1711313473603,-151.0,0.00019452,2]
[320342876,1711313473612,-500.0,0.00019452,2]
[320342877,1711313473621,-506.09832075,0.00019452,2]
[320342878,1711313473630,-500.0,0.00019452,2]
[320342879,1711313473640,-500.0,0.00019452,2]
[320342880,1711313473649,-285.45723272,0.00019452,2]
[320342881,1711313473658,-571.59,0.00019452,2]
[320342882,1711313473667,-500.0,0.00019452,2]
[320342883,1711313473677,-500.0,0.00019452,2]
[320342884,1711313473687,-500.0,0.00019452,2]
[320342885,1711313473696,-500.0,0.00019452,2]
[320342886,1711313473705,-2597.2,0.00019452,2]
[320342887,1711313473714,-655.48,0.00019452,2]
[320342888,1711313473724,-500.0,0.00019452,2]
[320342889,1711313473733,-500.0,0.00019452,2]
[320342890,1711313473742,-500.0,0.00019452,2]
[320342891,1711313473753,-500.0,0.00019452,2]
[320342892,1711313473765,-500.0,0.00019452,2]
[320342893,1711313473775,-151.0,0.00019452,2]
[320342894,1711313473785,-1296.04,0.00019452,2]
[320342895,1711313473794,-500.0,0.00019452,2]
[320342896,1711313473805,-502.56702326,0.00019452,2]
[320342897,1711313473814,-500.0,0.00019452,2]
[320342898,1711313473823,-500.0,0.00019452,2]
[320342899,1711313473833,-1067.35,0.00019452,2]
[320342900,1711313473845,-500.0,0.00019452,2]
[320342901,1711313473855,-500.0,0.00019452,2]
[320342902,1711313473865,-500.0,0.00019452,2]
[320342903,1711313473875,-502.29057971,0.00019452,2]
[320342904,1711313473892,-1760.79,0.00019452,2]
[320342905,1711313473908,-500.0,0.00019452,2]
[320342906,1711313473923,-500.0,0.00019452,2]
[320342907,1711313473936,-500.0,0.00019452,2]
[320342908,1711313473962,-971.0,0.00019452,2]
[320342909,1711313473986,-500.0,0.00019452,2]
[320342910,1711313474004,-505.70137333,0.00019452,2]
[320342911,1711313474021,-500.0,0.00019452,2]
[320342912,1711313474037,-500.0,0.00019452,2]
[320342913,1711313474052,-500.0,0.00019452,2]
[320342914,1711313474067,-500.0,0.00019452,2]
[320342915,1711313474091,-500.0,0.00019452,2]
[320342916,1711313474106,-500.0,0.00019452,2]
[320342917,1711313474118,-500.0,0.00019452,2]
[320342918,1711313474133,-500.0,0.00019452,2]
[320342919,1711313474147,-500.0,0.00019452,2]
[320342920,1711313474162,-500.0,0.00019452,2]
[320342921,1711313474176,-1327.49,0.00019452,2]
[320342922,1711313474191,-500.0,0.00019452,2]
[320342923,1711313474205,-500.0,0.00019452,2]
[320342924,1711313474221,-500.0,0.00019452,2]
[320342925,1711313474236,-500.0,0.00019452,2]
[320342926,1711313474251,-500.0,0.00019452,2]
[320342927,1711313474265,-501.78423217,0.00019452,2]
[320342928,1711313474276,-500.0,0.00019452,2]
[320342929,1711313474288,-500.0,0.00019452,2]
[320342930,1711313474302,-1937.23,0.00019452,2]
[320342931,1711313474315,-1424.9,0.00019452,2]
[320342932,1711313474329,-197.092431,0.00019452,2]
[320342933,1711313474341,-567.26065712,0.00019452,2]
[320342934,1711313474352,-500.0,0.00019452,2]
[320342935,1711313474365,-500.0,0.00019452,2]
[320342936,1711313474377,-500.0,0.00019452,2]
[320342937,1711313474389,-500.0,0.00019452,2]
[320342938,1711313474401,-500.0,0.00019452,2]
[320342939,1711313474413,-640.17,0.00019452,2]
[320342940,1711313474431,-500.0,0.00019452,2]
[320342941,1711313474445,-500.0,0.00019452,2]
[320342942,1711313474458,-568.37,0.00019452,2]
[320342943,1711313474469,-500.0,0.00019452,2]
[320342944,1711313474481,-500.0,0.00019452,2]
[320342945,1711313474494,-500.0,0.00019452,2]
[320342946,1711313474507,-502.74055177,0.00019452,2]
[320342947,1711313474519,-500.0,0.00019452,2]
[320342948,1711313474533,-2126.67,0.00019452,2]
[320342949,1711313474547,-500.0,0.00019452,2]
[320342950,1711313474565,-500.0,0.00019452,2]
[320342951,1711313474578,-553.81414791,0.00019452,2]
[320342952,1711313474607,-1924.53,0.00019452,2]
[320342953,1711313474623,-500.0,0.00019452,2]
[320342954,1711313474649,-500.0,0.00019452,2]
[320342955,1711313474677,-500.0,0.00019452,2]
[320342956,1711313474706,-500.0,0.00019452,2]
[320342957,1711313474725,-500.0,0.00019452,2]
[320342958,1711313474741,-500.0,0.00019452,2]
[320342959,1711313474755,-500.0,0.00019452,2]
[320342960,1711313474769,-500.0,0.00019452,2]
[320342961,1711313474781,-500.0,0.00019452,2]
[320342962,1711313474802,-500.0,0.00019452,2]
[320342963,1711313474816,-696.79,0.00019452,2]
[320342964,1711313474828,-500.0,0.00019452,2]
[320342965,1711313474840,-502.25489832,0.00019452,2]
[320342966,1711313474852,-500.0,0.00019452,2]
[320342967,1711313474868,-716.1,0.00019452,2]
[320342968,1711313474880,-1757.56,0.00019452,2]
[320342969,1711313474893,-500.0,0.00019452,2]
[320342970,1711313474906,-502.94281353,0.00019452,2]
[320342971,1711313474920,-533.66,0.00019452,2]
[320342972,1711313474933,-500.0,0.00019452,2]
[320342973,1711313474946,-1500.6,0.00019452,2]
[320342974,1711313474961,-500.0,0.00019452,2]
[320342975,1711313474974,-2503.76,0.00019452,2]
[320342976,1711313474988,-500.0,0.00019452,2]
[320342977,1711313475002,-1899.56,0.00019452,2]
[320342978,1711313475015,-500.0,0.00019452,2]
[320342979,1711313475029,-2034.79,0.00019452,2]
[320342980,1711313475043,-500.0,0.00019452,2]
[320342981,1711313475056,-500.0,0.00019452,2]
[320342982,1711313475069,-500.0,0.00019452,2]
[320342983,1711313475082,-1783.72,0.00019452,2]
[320342984,1711313475095,-500.0,0.00019452,2]
[320342985,1711313475108,-1210.64,0.00019452,2]
[320342986,1711313475121,-567.77,0.00019452,2]
[320342987,1711313475132,-500.0,0.00019452,2]
[320342988,1711313475144,-500.0,0.00019452,2]
[320342989,1711313475156,-593.90237759,0.00019452,2]
[320342990,1711313475168,-500.0,0.00019452,2]
[320342991,1711313475181,-500.0,0.00019452,2]
[320342992,1711313475194,-500.0,0.00019452,2]
[320342993,1711313475206,-1312.17,0.00019452,2]
[320342994,1711313475218,-500.0,0.00019452,2]
[320342995,1711313475229,-710.57,0.00019452,2]
[320342996,1711313475240,-341.28964398,0.00019452,2]
[320342997,1711313475252,-500.0,0.00019452,2]
[320342998,1711313475265,-500.0,0.00019452,2]
[320342999,1711313475277,-500.0,0.00019452,2]
[320343000,1711313475290,-844.23,0.00019452,2]
[320343001,1711313475302,-500.0,0.00019452,2]
[320343002,1711313475314,-760.19,0.00019452,2]
[320343003,1711313475326,-500.0,0.00019452,2]
[320343004,1711313475338,-500.0,0.00019452,2]
[320343005,1711313475350,-500.0,0.00019452,2]
[320343006,1711313475362,-500.0,0.00019452,2]
[320343007,1711313475373,-500.0,0.00019452,2]
[320343008,1711313475385,-500.0,0.00019452,2]
[320343009,1711313475397,-500.0,0.00019452,2]
[320343010,1711313475408,-835.37,0.00019452,2]
[320343011,1711313475420,-500.0,0.00019452,2]
[320343012,1711313475431,-577.53,0.00019452,2]
[320343013,1711313475444,-500.0,0.00019452,2]
[320343014,1711313475456,-1898.79,0.00019452,2]
[320343015,1711313475468,-501.73978297,0.00019452,2]
[320343016,1711313475479,-1086.0,0.00019452,2]
[320343017,1711313475491,-500.0,0.00019452,2]
[320343018,1711313475502,-500.0,0.00019452,2]
[320343019,1711313475514,-500.0,0.00019452,2]
[320343020,1711313475526,-500.0,0.00019452,2]
[320343021,1711313475537,-500.0,0.00019452,2]
[320343022,1711313475548,-500.0,0.00019452,2]
[320343023,1711313475560,-2678.93,0.00019452,2]
[320343024,1711313475571,-500.0,0.00019452,2]
[320343025,1711313475583,-630.47,0.00019452,2]
[320343026,1711313475594,-500.0,0.00019452,2]
[320343027,1711313475605,-1019.26,0.00019452,2]
[320343028,1711313475616,-1373.79,0.00019452,2]
[320343029,1711313475627,-500.0,0.00019452,2]
[320343030,1711313475639,-500.0,0.00019452,2]
[320343031,1711313475650,-252.27293783,0.00019452,2]
[320343032,1711313475662,-942.64,0.00019452,2]
[320343033,1711313475672,-500.0,0.00019452,2]
[320343034,1711313475684,-500.0,0.00019452,2]
[320343035,1711313475696,-500.0,0.00019452,2]
[320343036,1711313475707,-500.0,0.00019452,2]
[320343037,1711313475719,-500.0,0.00019452,2]
[320343038,1711313475730,-302.52597,0.00019452,2]
[320343039,1711313475741,-500.0,0.00019452,2]
[320343040,1711313475756,-302.52597,0.00019452,2]
[320343041,1711313475768,-500.0,0.00019452,2]
[320343042,1711313475780,-510.28996798,0.00019452,2]
[320343043,1711313475791,-834.44,0.00019452,2]
[320343044,1711313475804,-500.96812109,0.00019452,2]
[320343045,1711313475816,-500.0,0.00019452,2]
[320343046,1711313475828,-302.52597,0.00019452,2]
[320343047,1711313475839,-500.0,0.00019452,2]
[320343048,1711313475852,-302.52597,0.00019452,2]
[320343049,1711313475863,-500.0,0.00019452,2]
[320343050,1711313475875,-500.0,0.00019452,2]
[320343051,1711313475886,-500.0,0.00019452,2]
[320343052,1711313475898,-1253.49,0.00019452,2]
[320343053,1711313475909,-500.0,0.00019452,2]
[320343054,1711313475920,-210.35685451,0.00019452,2]
[320343055,1711313475932,-500.0,0.00019452,2]
[320343056,1711313475945,-500.0,0.00019452,2]
[320343057,1711313475957,-500.0,0.00019452,2]
[320343058,1711313475970,-905.35,0.00019452,2]
[320343059,1711313475983,-500.0,0.00019452,2]
[320343060,1711313475994,-1106.07,0.00019452,2]
[320343061,1711313476007,-570.52,0.00019452,2]
[320343062,1711313476018,-500.0,0.00019452,2]
[320343063,1711313476030,-500.0,0.00019452,2]
[320343064,1711313476042,-500.0,0.00019452,2]
[320343065,1711313476054,-570.34801358,0.00019452,2]
[320343066,1711313476066,-500.0,0.00019452,2]
[320343067,1711313476077,-500.0,0.00019452,2]
[320343068,1711313476089,-532.36732324,0.00019452,2]
[320343069,1711313476102,-500.0,0.00019452,2]
[320343070,1711313476114,-484.32569294,0.00019452,2]
[320343071,1711313476126,-500.0,0.00019452,2]
[320343072,1711313476139,-625.12,0.00019452,2]
[320343073,1711313476152,-500.0,0.00019452,2]
[320343074,1711313476164,-500.0,0.00019452,2]
[320343075,1711313476177,-151.0,0.00019452,2]
[320343076,1711313476190,-150.0,0.00019452,2]
[320343077,1711313476202,-151.0,0.00019452,2]
[320343078,1711313476215,-500.0,0.00019452,2]
[320343079,1711313476227,-500.0,0.00019452,2]
[320343080,1711313476239,-500.0,0.00019452,2]
[320343081,1711313476252,-502.2965477,0.00019452,2]
[320343082,1711313476264,-500.0,0.00019452,2]
[320343083,1711313476276,-500.0,0.00019452,2]
[320343084,1711313476287,-500.0,0.00019452,2]
[320343085,1711313476298,-1400.43,0.00019452,2]
[320343086,1711313476310,-662.42,0.00019452,2]
[320343087,1711313476322,-151.0,0.00019452,2]
[320343088,1711313476334,-151.0,0.00019452,2]
[320343089,1711313476346,-500.0,0.00019452,2]
[320343090,1711313476358,-500.0,0.00019452,2]
[320343091,1711313476369,-500.0,0.00019452,2]
[320343092,1711313476382,-500.0,0.00019452,2]
[320343093,1711313476394,-500.0,0.00019452,2]
[320343094,1711313476406,-500.0,0.00019452,2]
[320343095,1711313476418,-151.0,0.00019452,2]
[320343096,1711313476430,-503.38052248,0.00019452,2]
[320343097,1711313476443,-151.0,0.00019452,2]
[320343098,1711313476456,-965.1,0.00019452,2]
[320343099,1711313476469,-500.0,0.00019452,2]
[320343100,1711313476482,-500.0,0.00019452,2]
[320343101,1711313476495,-1834.0,0.00019452,2]
[320343102,1711313476509,-500.0,0.00019452,2]
[320343103,1711313476522,-500.0,0.00019452,2]
[320343104,1711313476537,-501.30346219,0.00019452,2]
[320343105,1711313476889,-500.0,0.00019452,2]
[320343106,1711313476930,-276.22887693,0.00019452,2]
[320343107,1711313476947,-500.0,0.00019452,2]
[320343108,1711313476958,-500.0,0.00019452,2]
[320343109,1711313476968,-152.267924,0.00019452,2]
[320343110,1711313476977,-2383.58,0.00019452,2]
[320343111,1711313476987,-2387.04,0.00019452,2]
[320343112,1711313476996,-1309.56,0.00019452,2]
[320343113,1711313477006,-500.0,0.00019452,2]
[320343114,1711313477015,-500.0,0.00019452,2]
[320343115,1711313477025,-500.0,0.00019452,2]
[320343116,1711313477035,-2191.49,0.00019452,2]
[320343117,1711313477045,-500.0,0.00019452,2]
[320343118,1711313477055,-500.0,0.00019452,2]
[320343119,1711313477064,-500.0,0.00019452,2]
[320343120,1711313477074,-500.0,0.00019452,2]
[320343121,1711313477084,-500.0,0.00019452,2]
[320343122,1711313477093,-500.0,0.00019452,2]
[320343123,1711313477103,-500.0,0.00019452,2]
[320343124,1711313477112,-500.0,0.00019452,2]
[320343125,1711313477122,-500.0,0.00019452,2]
[320343126,1711313477132,-2001.39,0.00019452,2]
[320343127,1711313477141,-500.0,0.00019452,2]
[320343128,1711313477151,-500.0,0.00019452,2]
[320343129,1711313477160,-500.0,0.00019452,2]
[320343130,1711313477170,-500.0,0.00019452,2]
[320343131,1711313477180,-4028.16,0.00019452,2]
[320343132,1711313477191,-500.0,0.00019452,2]
[320343133,1711313477201,-500.0,0.00019452,2]
[320343134,1711313477211,-816.41,0.00019452,2]
[320343135,1711313477221,-500.0,0.00019452,2]
[320343136,1711313477231,-1587.22,0.00019452,2]
[320343137,1711313477240,-195.516076,0.00019452,2]
[320343138,1711313477250,-195.516076,0.00019452,2]
[320343139,1711313477259,-647.27184752,0.00019452,2]
[320343140,1711313477269,-500.0,0.00019452,2]
[320343141,1711313477279,-1011.58,0.00019452,2]
[320343142,1711313477289,-500.0,0.00019452,2]
[320343143,1711313477299,-195.516076,0.00019452,2]
[320343144,1711313477308,-195.516076,0.00019452,2]
[320343145,1711313477318,-500.0,0.00019452,2]
[320343146,1711313477327,-500.0,0.00019452,2]
[320343147,1711313477337,-653.67,0.00019452,2]
[320343148,1711313477346,-512.64,0.00019452,2]
[320343149,1711313477356,-887.64,0.00019452,2]
[320343150,1711313477365,-1936.32,0.00019452,2]
[320343151,1711313477375,-1692.53,0.00019452,2]
[320343152,1711313477384,-1647.5,0.00019452,2]
[320343153,1711313477395,-172.4697,0.00019452,2]
[320343154,1711313477404,-172.4697,0.00019452,2]
[320343155,1711313477414,-500.0,0.00019452,2]
[320343156,1711313477424,-500.0,0.00019452,2]
[320343157,1711313477434,-500.0,0.00019452,2]
[320343158,1711313477445,-500.0,0.00019452,2]
[320343159,1711313477454,-500.0,0.00019452,2]
[320343160,1711313477464,-172.4697,0.00019452,2]
[320343161,1711313477474,-1090.22,0.00019452,2]
[320343162,1711313477483,-500.0,0.00019452,2]
[320343163,1711313477493,-500.0,0.00019452,2]
[320343164,1711313477503,-172.4697,0.00019452,2]
[320343165,1711313477513,-500.0,0.00019452,2]
[320343166,1711313477523,-500.0,0.00019452,2]
[320343167,1711313477532,-500.0,0.00019452,2]
[320343168,1711313477542,-500.0,0.00019452,2]
[320343169,1711313477552,-500.0,0.00019452,2]
[320343170,1711313477562,-500.0,0.00019452,2]
[320343171,1711313477572,-958.25,0.00019452,2]
[320343172,1711313477582,-500.0,0.00019452,2]
[320343173,1711313477592,-500.0,0.00019452,2]
[320343174,1711313477603,-500.0,0.00019452,2]
[320343175,1711313477613,-500.0,0.00019452,2]
[320343176,1711313477623,-500.0,0.00019452,2]
[320343177,1711313477632,-421.593282,0.00019452,2]
[320343178,1711313477642,-421.593282,0.00019452,2]
[320343179,1711313477652,-151.0,0.00019452,2]
[320343180,1711313477663,-151.0,0.00019452,2]
[320343181,1711313477673,-500.0,0.00019452,2]
[320343182,1711313477683,-1987.03,0.00019452,2]
[320343183,1711313477695,-500.0,0.00019452,2]
[320343184,1711313477705,-500.0,0.00019452,2]
[320343185,1711313477716,-500.42304637,0.00019452,2]
[320343186,1711313477725,-504.2868193,0.00019452,2]
[320343187,1711313477735,-500.0,0.00019452,2]
[320343188,1711313477744,-223.4446,0.00019452,2]
[320343189,1711313477758,-223.4446,0.00019452,2]
[320343190,1711313477768,-500.0,0.00019452,2]
[320343191,1711313477777,-421.593282,0.00019452,2]
[320343192,1711313477791,-421.593282,0.00019452,2]
[320343193,1711313477802,-1822.57,0.00019452,2]
[320343194,1711313477813,-500.0,0.00019452,2]
[320343195,1711313477822,-500.0,0.00019452,2]
[320343196,1711313477833,-223.4446,0.00019452,2]
[320343197,1711313477843,-223.4446,0.00019452,2]
[320343198,1711313477853,-500.0,0.00019452,2]
[320343199,1711313477862,-510.16040794,0.00019452,2]
[320343200,1711313477873,-500.0,0.00019452,2]
[320343201,1711313477883,-5285.62,0.00019452,2]
[320343202,1711313477893,-500.0,0.00019452,2]
[320343203,1711313477902,-3076.76,0.00019452,2]
[320343204,1711313477912,-803.03,0.00019452,2]
[320343205,1711313477922,-500.0,0.00019452,2]
[320343206,1711313477931,-500.0,0.00019452,2]
[320343207,1711313477942,-500.0,0.00019452,2]
[320343208,1711313477952,-501.55642832,0.00019452,2]
[320343209,1711313477962,-151.0,0.00019452,2]
[320343210,1711313477972,-194.798632,0.00019452,2]
[320343211,1711313477982,-500.0,0.00019452,2]
[320343212,1711313477993,-502.36415331,0.00019452,2]
[320343213,1711313478003,-500.0,0.00019452,2]
[320343214,1711313478013,-1398.84,0.00019452,2]
[320343215,1711313478023,-151.0,0.00019452,2]
[320343216,1711313478033,-239.86293,0.00019452,2]
[320343217,1711313478043,-500.0,0.00019452,2]
[320343218,1711313478052,-500.0,0.00019452,2]
[320343219,1711313478062,-500.0,0.00019452,2]
[320343220,1711313478072,-500.0,0.00019452,2]
[320343221,1711313478081,-2115.4,0.00019452,2]
[320343222,1711313478091,-500.0,0.00019452,2]
[320343223,1711313478101,-500.0,0.00019452,2]
[320343224,1711313478110,-500.0,0.00019452,2]
[320343225,1711313478120,-500.0,0.00019452,2]
[320343226,1711313478129,-500.0,0.00019452,2]
[320343227,1711313478139,-151.35702,0.00019452,2]
[320343228,1711313478148,-593.42,0.00019452,2]
[320343229,1711313478158,-500.0,0.00019452,2]
[320343230,1711313478167,-500.0,0.00019452,2]
[320343231,1711313478177,-500.0,0.00019452,2]
[320343232,1711313478186,-500.0,0.00019452,2]
[320343233,1711313478196,-1106.86,0.00019452,2]
[320343234,1711313478206,-1563.14,0.00019452,2]
[320343235,1711313478215,-500.0,0.00019452,2]
[320343236,1711313478225,-500.0,0.00019452,2]
[320343237,1711313478234,-500.0,0.00019452,2]
[320343238,1711313478244,-500.0,0.00019452,2]
[320343239,1711313478253,-500.0,0.00019452,2]
[320343240,1711313478263,-613.66,0.00019452,2]
[320343241,1711313478274,-1685.65,0.00019452,2]
[320343242,1711313478284,-500.0,0.00019452,2]
[320343243,1711313478293,-500.0,0.00019452,2]
[320343244,1711313478304,-1437.45,0.00019452,2]
[320343245,1711313478314,-2893.92,0.00019452,2]
[320343246,1711313478324,-2274.12,0.00019452,2]
[320343247,1711313478333,-500.0,0.00019452,2]
[320343248,1711313478343,-500.68763716,0.00019452,2]
[320343249,1711313478352,-500.0,0.00019452,2]
[320343250,1711313478362,-505.1875716,0.00019452,2]
[320343251,1711313478371,-880.55,0.00019452,2]
[320343252,1711313478381,-151.0,0.00019452,2]
[320343253,1711313478391,-151.0,0.00019452,2]
[320343254,1711313478400,-500.0,0.00019452,2]
[320343255,1711313478410,-500.0,0.00019452,2]
[320343256,1711313478419,-500.0,0.00019452,2]
[320343257,1711313478429,-500.0,0.00019452,2]
[320343258,1711313478441,-500.0,0.00019452,2]
[320343259,1711313478451,-151.0,0.00019452,2]
[320343260,1711313478462,-724.75,0.00019452,2]
[320343261,1711313478472,-151.0,0.00019452,2]
[320343262,1711313478482,-500.0,0.00019452,2]
[320343263,1711313478491,-500.0,0.00019452,2]
[320343264,1711313478502,-1962.52,0.00019452,2]
[320343265,1711313478512,-500.0,0.00019452,2]
[320343266,1711313478522,-1112.56,0.00019452,2]